bitfinex-derivatives/quotes_SOLF0:USTF0_20251024
["timestamp","ask_amount","ask_price","bid_price","bid_amount"]
[1761273370482,2.8,192.26,192.19,1.52681752]
[1761273370883,2.8,192.26,192.17,2.62]
[1761273371084,2.8,192.26,192.2,1.52681752]
[1761273372795,2.8,192.26,192.17,2.62]
[1761273372995,2.8,192.26,192.2,1.52681752]
[1761273374284,2.8,192.26,192.21,1.52681752]
[1761273375192,2.8,192.26,192.19,1.52681752]
[1761273375499,2.8,192.25,192.17,1.52681752]
[1761273375684,2.8,192.23,192.17,1.52681752]
[1761273379599,2.8,192.23,192.19,1.52681752]
[1761273379796,2.8,192.23,192.14,2.62]
[1761273379996,3.95525934,192.22,192.16,1.52681752]
[1761273380190,9.40842338,192.25,192.16,1.52681752]
[1761273380191,2.8,192.21,192.16,1.52681752]
[1761273380500,2.8,192.21,192.16,4.14681752]
[1761273381003,2.8,192.2,192.16,4.14681752]
[1761273381194,2.8,192.19,192.16,1.52681752]
[1761273383003,2.8,192.19,192.1,2.62]
[1761273383194,2.8,192.17,192.1,2.62]
[1761273383396,2.8,192.17,192.13,1.52681752]
[1761273384200,6.76746686,192.17,192.13,1.52681752]
[1761273384403,2.8,192.18,192.13,1.52681752]
[1761273384595,2.8,192.16,192.13,1.52681752]
[1761273385706,2.8,192.15,192.13,1.52681752]
[1761273385902,3.96959444,192.15,192.13,1.52681752]
[1761273386107,3.96948696,192.14,192.11,1.52681752]
[1761273386306,2.8,192.13,192.11,1.52681752]
[1761273387106,2.8,192.11,192.03,1.52681752]
[1761273387305,2.67,192.09,192.03,1.52681752]
[1761273387505,2.67,192.07,192.03,1.52681752]
[1761273387804,2.67,192.05,192.03,1.52681752]
[1761273388006,2.67,192.05,192.01,1.52681752]
[1761273388703,2.67,192.05,192.01,4.34681752]
[1761273391108,2.65,192.08,192.03,1.52681752]
[1761273391296,2.65,192.07,192.03,1.52681752]
[1761273392707,2.65,192.07,192.03,4.24681752]
[1761273399111,2.65,192.07,192.03,1.52681752]
[1761273400812,2.65,192.07,192.0,5.10541378]
[1761273403105,2.65,192.07,191.98,2.72]
[1761273403309,2.65,192.07,191.98,5.10541378]
[1761273403807,2.65,192.07,191.95,8.72541378]
[1761273404007,2.65,192.07,191.96,2.72]
[1761273404206,2.65,192.07,191.98,5.10541378]
[1761273404410,2.65,192.07,191.98,2.72]
[1761273411417,2.65,192.06,191.98,2.72]
[1761273411715,2.65,192.05,192.0,2.38541378]
[1761273414518,2.65,192.05,192.0,5.10541378]
[1761273415313,2.65,192.05,192.0,2.38541378]
[1761273415514,2.65,192.04,192.0,2.38541378]
[1761273416815,2.65,192.04,192.0,5.10541378]
[1761273417714,2.65,192.03,192.0,5.10541378]
[1761273420220,2.82,192.02,192.0,2.38541378]
[1761273420821,2.82,192.02,191.97,2.76]
[1761273421121,2.82,192.02,191.98,5.14541378]
[1761273421427,2.82,192.02,191.99,2.76]
[1761273422232,4.06006644,192.03,191.99,2.76]
[1761273422520,4.06006644,192.02,191.99,2.76]
[1761273422728,2.82,192.03,191.99,2.76]
[1761273422918,6.88006644,192.02,191.99,2.76]
[1761273423120,2.82,192.02,191.99,2.76]
[1761273423424,2.82,192.02,191.98,5.14541378]
[1761273423727,2.82,192.02,191.99,2.76]
[1761273423922,4.7079646,192.05,191.99,2.76]
[1761273424125,2.82,192.08,192.05,2.76]
[1761273424428,2.82,192.06,192.04,2.38541378]
[1761273424628,4.06847218,192.05,192.04,2.38541378]
[1761273425125,4.06847218,192.05,192.04,5.14541378]
[1761273428536,4.06847218,192.05,192.04,2.76]
[1761273432138,6.88847218,192.05,192.01,5.14541378]
[1761273432339,6.88847218,192.04,192.01,5.14541378]
[1761273432541,4.06847218,192.03,192.01,5.14541378]
[1761273432842,2.82,192.04,192.02,2.76]
[1761273433044,4.03330094,192.03,192.02,2.76]
[1761273434037,4.61878463,192.06,192.02,2.76]
[1761273434236,4.03332975,192.05,192.02,2.76]
[1761273434443,4.03332975,192.04,192.02,2.76]
[1761273434641,2.82,192.06,192.02,2.76]
[1761273434842,4.03332595,192.05,192.02,2.76]
[1761273435140,4.03332595,192.04,192.02,2.76]
[1761273435338,2.82,192.06,192.02,2.76]
[1761273435538,4.03290746,192.05,192.02,2.76]
[1761273435740,4.03290746,192.04,192.02,2.76]
[1761273435940,2.82,192.06,192.02,2.76]
[1761273436140,4.03307448,192.05,192.02,2.76]
[1761273436443,4.03307448,192.04,192.02,2.76]
[1761273436646,2.82,192.06,192.02,2.76]
[1761273436840,4.03413817,192.05,192.02,2.76]
[1761273437039,4.03413817,192.04,192.02,2.76]
[1761273437242,2.82,192.06,192.02,2.76]
[1761273437446,4.03511495,192.05,192.02,2.76]
[1761273437747,4.03511495,192.04,192.02,2.76]
[1761273438044,2.82,192.06,192.02,2.76]
[1761273438346,6.85526908,192.05,192.02,2.76]
[1761273438645,4.03526908,192.04,192.02,2.76]
[1761273438841,2.82,192.05,192.02,2.76]
[1761273439046,4.0352662,192.04,192.02,2.76]
[1761273439347,4.62107747,192.07,192.02,2.76]
[1761273439645,6.85537677,192.06,192.02,2.76]
[1761273439844,4.03537677,192.05,192.02,2.76]
[1761273440046,4.03537677,192.04,192.02,2.76]
[1761273440245,2.82,192.06,192.02,2.76]
[1761273440545,4.03594304,192.05,192.02,2.76]
[1761273440750,4.03594304,192.04,192.02,2.76]
[1761273441047,2.82,192.06,192.02,2.76]
[1761273441345,4.00164303,192.05,192.02,2.76]
[1761273441539,4.00164303,192.04,192.02,2.76]
[1761273441739,2.82,192.06,192.02,2.76]
[1761273441946,4.00164375,192.05,192.02,2.76]
[1761273442142,4.00164375,192.04,192.02,2.76]
[1761273442346,7.62036183,192.09,192.02,2.76]
[1761273442539,8.62436689,192.08,192.02,2.76]
[1761273442735,8.62436689,192.07,192.02,2.76]
[1761273442938,4.00204926,192.06,192.02,2.76]
[1761273443143,4.00204926,192.05,192.02,2.76]
[1761273443341,7.44425341,192.07,192.02,2.76]
[1761273443543,4.003941,192.06,192.02,2.76]
[1761273443847,4.003941,192.05,192.02,2.76]
[1761273444044,7.44594022,192.07,192.02,2.76]
[1761273444238,4.0040179,192.06,192.02,2.76]
[1761273444440,4.0040179,192.05,192.02,2.76]
[1761273444635,7.44590622,192.07,192.02,2.76]
[1761273444846,4.0040179,192.06,192.02,2.76]
[1761273445048,4.0040179,192.05,192.02,2.76]
[1761273445250,7.44590437,192.07,192.02,2.76]
[1761273445547,4.00411075,192.06,192.02,2.76]
[1761273445848,4.00411075,192.05,192.02,2.76]
[1761273446044,7.44599453,192.07,192.02,2.76]
[1761273446245,4.00411067,192.06,192.02,2.76]
[1761273446549,4.00411067,192.05,192.02,2.76]
[1761273446848,7.44599397,192.07,192.02,2.76]
[1761273447043,4.00411238,192.06,192.02,2.76]
[1761273447239,4.00411238,192.05,192.02,2.76]
[1761273447452,2.82,192.07,192.02,2.76]
[1761273447644,4.00395177,192.06,192.02,2.76]
[1761273447949,4.00395177,192.05,192.02,2.76]
[1761273448248,2.82,192.07,192.02,2.76]
[1761273448451,4.00379691,192.06,192.02,2.76]
[1761273448650,4.00379691,192.05,192.02,2.76]
[1761273448845,2.82,192.07,192.02,2.76]
[1761273449047,4.00387702,192.06,192.02,2.76]
[1761273449347,4.00387702,192.05,192.02,2.76]
[1761273449544,2.82,192.07,192.02,2.76]
[1761273449744,4.00372972,192.06,192.02,2.76]
[1761273449943,4.00372972,192.05,192.02,2.76]
[1761273450247,4.00386779,192.08,192.05,2.83]
[1761273450444,4.00386779,192.07,192.05,2.83]
[1761273450643,7.31496104,192.1,192.05,2.83]
[1761273450845,4.00386702,192.09,192.05,2.83]
[1761273451046,4.00386702,192.08,192.05,2.83]
[1761273451348,2.69,192.1,192.05,2.83]
[1761273451550,4.00319482,192.09,192.05,2.83]
[1761273451750,4.00319482,192.08,192.05,2.83]
[1761273451944,2.69,192.1,192.05,2.83]
[1761273452141,4.0031941,192.09,192.05,2.83]
[1761273452342,4.0031941,192.08,192.05,2.83]
[1761273452541,2.69,192.1,192.05,2.83]
[1761273452755,4.00253871,192.09,192.05,2.83]
[1761273453051,4.00253871,192.08,192.05,2.83]
[1761273453249,2.69,192.1,192.05,2.83]
[1761273453552,4.0019967,192.09,192.05,2.83]
[1761273453752,2.69,192.12,192.05,2.83]
[1761273453946,4.00253626,192.11,192.05,2.83]
[1761273454147,2.69,192.1,192.05,2.83]
[1761273457048,2.69,192.08,192.05,2.83]
[1761273460756,2.69,192.08,192.06,2.83]
[1761273462160,2.69,192.06,192.01,1.52606431]
[1761273462457,2.69,192.06,192.02,2.83]
[1761273464054,4.00048851,192.05,192.02,2.83]
[1761273464255,2.69,192.05,192.02,2.83]
[1761273468067,2.69,192.08,192.04,2.83]
[1761273468266,4.00314542,192.07,192.04,2.83]
[1761273468466,4.00314542,192.06,192.04,2.83]
[1761273468759,2.69,192.08,192.04,2.83]
[1761273468962,4.00315075,192.07,192.04,2.83]
[1761273469160,6.69315075,192.06,192.04,2.83]
[1761273469369,2.69,192.06,192.04,2.83]
[1761273472662,2.69,192.06,191.99,2.83]
[1761273472863,2.69,192.04,191.99,2.83]
[1761273473175,2.69,192.04,192.0,2.83]
[1761273474874,2.69,192.04,192.01,2.83]
[1761273476971,2.69,192.04,191.98,4.35606431]
[1761273477170,4.62519366,192.07,191.99,2.83]
[1761273477171,2.69,192.02,191.99,2.83]
[1761273483072,2.68,192.05,192.0,1.52606431]
[1761273483270,6.70130369,192.04,192.01,2.65]
[1761273483477,2.68,192.04,192.01,2.65]
[1761273486989,6.70255272,192.03,192.01,2.65]
[1761273487279,6.70255272,192.03,191.98,1.52606431]
[1761273487280,2.68,192.03,191.98,1.52606431]
[1761273487476,2.68,192.03,191.99,2.65]
[1761273495187,2.68,192.03,192.0,1.52606431]
[1761273495686,2.68,192.03,192.0,4.17606431]
[1761273498490,2.68,192.03,192.01,2.65]
[1761273500698,2.68,192.03,192.0,4.17606431]
[1761273501200,2.68,192.03,192.0,1.52606431]
[1761273501797,2.68,192.03,192.0,4.17606431]
[1761273503302,6.7166425,192.02,192.0,4.17606431]
[1761273503503,2.68,192.02,192.0,4.17606431]
[1761273504000,2.68,192.02,191.98,1.52606431]
[1761273504197,2.68,192.0,191.97,2.65]
[1761273505405,2.68,192.0,191.96,4.17606431]
[1761273506108,4.0501092,191.99,191.97,2.65]
[1761273506411,2.68,191.99,191.97,2.65]
[1761273510511,2.62,192.03,191.99,2.82]
[1761273510712,4.04868886,192.02,192.01,4.34606431]
[1761273512620,6.66868886,192.02,192.01,1.52606431]
[1761273512816,6.66868886,192.02,191.99,1.52606431]
[1761273513025,2.62,192.0,191.97,4.34606431]
[1761273513224,2.62,192.0,191.98,2.82]
[1761273513415,2.62,192.02,191.98,2.82]
[1761273513721,6.66755921,192.01,191.98,2.82]
[1761273513920,4.04755921,192.0,191.98,2.82]
[1761273514217,4.80694648,192.04,191.98,2.82]
[1761273514218,2.62,192.02,191.98,2.82]
[1761273514410,4.04789187,192.01,191.98,2.82]
[1761273514616,4.04789187,192.0,191.98,2.82]
[1761273514816,2.62,192.02,191.98,2.82]
[1761273515020,4.04866279,192.01,191.98,2.82]
[1761273515218,4.04866279,192.0,191.98,2.82]
[1761273515419,2.62,192.02,191.98,2.82]
[1761273515719,4.04909726,192.01,191.98,2.82]
[1761273515920,4.04909726,192.0,191.98,2.82]
[1761273516222,4.04909726,191.99,191.98,2.82]
[1761273520625,2.62,192.02,191.98,2.82]
[1761273520827,4.05060704,192.01,191.98,2.82]
[1761273521122,4.05060704,192.0,191.98,2.82]
[1761273521321,2.62,192.01,191.98,2.82]
[1761273521522,4.05076518,192.0,191.98,2.82]
[1761273521722,2.62,192.01,191.98,2.82]
[1761273522021,4.05076228,192.0,191.98,2.82]
[1761273522226,2.62,192.01,191.98,2.82]
[1761273522521,4.05074397,192.0,191.98,2.82]
[1761273522718,2.62,192.01,191.98,2.82]
[1761273522919,4.05074431,192.0,191.98,2.82]
[1761273523119,2.62,192.01,191.98,2.82]
[1761273523321,4.05070065,192.0,191.98,2.82]
[1761273523620,2.62,192.01,191.98,2.82]
[1761273523821,4.05070138,192.0,191.98,2.82]
[1761273524024,2.62,192.01,191.98,2.82]
[1761273524331,4.05066634,192.0,191.98,2.82]
[1761273524627,2.62,192.01,191.98,2.82]
[1761273524830,4.05066958,192.0,191.98,2.82]
[1761273525028,2.62,192.01,191.98,2.82]
[1761273525229,4.05070811,192.0,191.98,2.82]
[1761273525431,2.62,192.01,191.98,2.82]
[1761273525629,6.67070511,192.0,191.98,2.82]
[1761273525928,2.62,192.0,191.96,2.82]
[1761273526129,6.67052886,191.99,191.96,45.9]
[1761273526330,2.62,191.99,191.97,2.82]
[1761273527126,2.62,191.99,191.96,45.9]
[1761273527732,2.62,191.99,191.97,2.82]
[1761273530230,2.62,192.02,191.97,2.82]
[1761273530533,6.67028365,192.01,191.97,2.82]
[1761273530730,4.05028365,192.0,191.97,2.82]
[1761273530926,4.05028365,191.99,191.97,2.82]
[1761273531125,2.62,192.01,191.97,2.82]
[1761273531332,4.04553994,192.0,191.97,2.82]
[1761273531530,4.04553994,191.99,191.97,2.82]
[1761273531732,2.62,192.01,191.97,2.82]
[1761273531929,4.04553994,192.0,191.97,2.82]
[1761273532134,4.04553994,191.99,191.97,2.82]
[1761273532434,2.62,192.0,191.97,2.82]
[1761273532732,4.0459873,191.99,191.97,2.82]
[1761273532935,2.62,192.0,191.97,2.82]
[1761273533233,4.0459873,191.99,191.97,2.82]
[1761273533434,2.62,192.0,191.97,2.82]
[1761273533625,4.04606647,191.99,191.97,2.82]
[1761273533825,2.62,192.0,191.97,2.82]
[1761273534027,4.04606647,191.99,191.97,2.82]
[1761273534234,2.62,192.0,191.97,2.82]
[1761273534531,4.04614668,191.99,191.97,2.82]
[1761273534731,2.62,192.0,191.97,2.82]
[1761273534938,4.04658643,191.99,191.97,2.82]
[1761273535136,2.62,192.0,191.97,2.82]
[1761273535326,4.04666834,191.99,191.97,2.82]
[1761273535528,2.62,192.0,191.97,2.82]
[1761273535826,4.04666834,191.99,191.97,2.82]
[1761273536028,2.62,192.0,191.97,2.82]
[1761273536333,4.04677399,191.99,191.97,2.82]
[1761273536632,2.62,192.0,191.97,2.82]
[1761273536826,4.04656819,191.99,191.97,2.82]
[1761273537027,2.62,192.0,191.97,2.82]
[1761273537329,4.04671945,191.99,191.97,2.82]
[1761273537530,2.62,192.0,191.97,2.82]
[1761273537730,4.04672107,191.99,191.97,2.82]
[1761273538040,2.62,192.0,191.97,2.82]
[1761273538337,4.04689358,191.99,191.97,2.82]
[1761273538535,2.62,192.0,191.97,2.82]
[1761273538837,4.04689035,191.99,191.97,2.82]
[1761273539140,2.62,192.0,191.97,2.82]
[1761273539436,4.04709276,191.99,191.97,2.82]
[1761273539635,2.62,192.0,191.97,2.82]
[1761273539934,4.04709276,191.99,191.97,2.82]
[1761273540135,2.62,192.0,191.97,2.82]
[1761273540337,4.04726942,191.99,191.97,2.82]
[1761273540529,2.62,192.0,191.97,2.82]
[1761273540731,4.0472707,191.99,191.97,2.82]
[1761273540932,2.62,192.0,191.97,2.82]
[1761273541129,4.04726942,191.99,191.97,2.82]
[1761273541428,2.62,192.0,191.97,2.82]
[1761273541736,4.04733055,191.99,191.97,2.82]
[1761273541935,2.62,192.0,191.98,2.86]
[1761273542136,4.0469493,191.99,191.98,2.86]
[1761273544733,2.68,192.02,191.98,2.86]
[1761273544933,6.72718295,192.01,191.98,2.86]
[1761273545236,4.04718295,192.0,191.98,2.86]
[1761273545536,2.68,192.01,191.98,2.86]
[1761273545731,4.04758562,192.0,191.98,2.86]
[1761273545930,2.68,192.01,191.98,2.86]
[1761273546134,4.04758562,192.0,191.98,2.86]
[1761273546338,2.68,192.01,191.98,2.86]
[1761273546538,4.04819857,192.0,191.98,2.86]
[1761273546742,2.68,192.01,191.98,2.86]
[1761273546936,4.04819857,192.0,191.98,2.86]
[1761273547137,4.04871747,191.99,191.98,2.86]
[1761273551734,4.04871747,191.99,191.97,43.08]
[1761273551935,2.68,191.98,191.95,2.86]
[1761273552142,4.04449772,191.97,191.94,43.06]
[1761273552441,6.72449772,191.96,191.94,43.06]
[1761273552739,2.68,191.96,191.94,43.06]
[1761273553445,2.68,191.96,191.94,45.92]
[1761273556944,2.68,191.96,191.94,2.86]
[1761273557145,2.68,191.96,191.93,43.06]
[1761273557450,2.68,191.96,191.93,45.92]
[1761273558247,2.68,191.96,191.92,43.06]
[1761273558446,2.68,191.96,191.92,45.92]
[1761273558847,2.68,191.96,191.92,43.06]
[1761273559850,2.68,191.96,191.92,45.92]
[1761273560345,4.80694648,192.0,191.93,2.86]
[1761273560551,6.74887002,191.99,191.93,2.86]
[1761273560851,6.74887002,191.98,191.93,2.86]
[1761273561050,4.06887002,191.97,191.93,2.86]
[1761273561350,2.68,191.98,191.93,2.86]
[1761273561552,4.12111067,191.97,191.93,2.86]
[1761273561751,2.68,191.98,191.93,2.86]
[1761273561950,4.12111023,191.97,191.93,2.86]
[1761273562154,2.68,191.98,191.93,2.86]
[1761273562450,2.68,191.96,191.86,62.0]
[1761273562748,4.80694648,192.01,191.77,2.86]
[1761273562749,2.68,191.88,191.77,2.86]
[1761273562944,4.80694648,191.86,191.77,2.86]
[1761273563141,2.68,191.82,191.76,0.90719499]
[1761273563446,2.68,191.8,191.72,43.12]
[1761273563646,2.68,191.8,191.73,45.98]
[1761273564149,2.68,191.8,191.73,43.14]
[1761273564855,2.68,191.8,191.73,46.0]
[1761273568761,2.68,191.8,191.74,2.81]
[1761273569055,2.86,191.85,191.74,2.81]
[1761273569659,4.13723074,191.85,191.74,2.81]
[1761273569862,2.86,191.84,191.74,2.81]
[1761273570565,2.86,191.83,191.74,2.81]
[1761273571067,2.86,191.83,191.74,45.97]
[1761273571960,2.86,191.83,191.74,2.81]
[1761273572355,2.86,191.82,191.74,2.81]
[1761273572762,2.86,191.82,191.71,2.73]
[1761273572957,2.86,191.82,191.72,43.16]
[1761273574372,2.86,191.82,191.73,2.73]
[1761273576669,2.86,191.81,191.73,2.73]
[1761273584471,4.11710832,191.81,191.71,43.18]
[1761273584677,2.86,191.76,191.68,2.73]
[1761273585176,2.86,191.75,191.68,2.73]
[1761273585980,2.86,191.73,191.65,2.73]
[1761273586475,2.86,191.71,191.65,2.73]
[1761273589083,2.86,191.74,191.68,1.53109309]
[1761273589385,2.86,191.74,191.69,2.73]
[1761273591882,2.86,191.73,191.69,2.73]
[1761273594288,4.01067665,191.74,191.69,2.73]
[1761273594493,2.86,191.74,191.69,2.73]
[1761273596988,2.86,191.73,191.66,4.26109309]
[1761273598990,2.86,191.73,191.67,2.75]
[1761273599890,2.86,191.73,191.61,43.2]
[1761273599891,2.86,191.73,191.69,2.75]
[1761273600290,6.84071659,191.73,191.69,2.75]
[1761273600490,2.86,191.73,191.69,2.75]
[1761273601295,3.98269092,191.72,191.7,1.53109309]
[1761273601491,6.84269092,191.76,191.7,4.28109309]
[1761273601795,2.86,191.74,191.7,4.28109309]
[1761273601994,2.86,191.74,191.7,1.53109309]
[1761273602198,2.86,191.74,191.71,2.75]
[1761273602390,3.98834886,191.73,191.71,2.75]
[1761273602594,2.86,191.74,191.71,2.75]
[1761273602791,3.98864665,191.73,191.71,2.75]
[1761273602991,2.86,191.74,191.71,2.75]
[1761273603198,3.98936051,191.73,191.71,2.75]
[1761273603394,2.86,191.74,191.71,2.75]
[1761273603594,3.99284675,191.73,191.71,2.75]
[1761273603792,2.86,191.74,191.7,1.53109309]
[1761273604000,6.85284675,191.73,191.7,1.53109309]
[1761273604198,2.86,191.73,191.7,4.28109309]
[1761273604394,3.99670064,191.72,191.7,4.28109309]
[1761273604693,2.86,191.75,191.71,2.75]
[1761273604897,6.85704293,191.74,191.71,2.75]
[1761273605202,3.9965516,191.73,191.71,2.75]
[1761273605398,3.9965516,191.72,191.71,2.75]
[1761273612302,7.62342157,191.77,191.71,2.75]
[1761273612492,4.01811274,191.76,191.71,2.75]
[1761273612696,6.87811274,191.75,191.71,2.75]
[1761273612904,4.01811274,191.74,191.71,2.75]
[1761273613105,4.01811274,191.73,191.71,2.75]
[1761273613304,2.86,191.75,191.71,2.75]
[1761273613504,4.01756898,191.74,191.71,2.75]
[1761273613700,4.01756898,191.73,191.71,2.75]
[1761273613899,2.86,191.74,191.71,2.75]
[1761273614099,4.01811857,191.73,191.71,2.75]
[1761273614295,2.86,191.74,191.71,2.75]
[1761273614492,4.01887398,191.73,191.72,2.75]
[1761273614898,4.01887398,191.73,191.7,1.53109309]
[1761273615204,6.87845009,191.72,191.69,2.75]
[1761273615400,2.86,191.72,191.69,2.75]
[1761273615607,4.01893705,191.71,191.69,2.75]
[1761273615801,2.86,191.72,191.69,2.75]
[1761273616000,4.01893705,191.71,191.69,2.75]
[1761273616199,2.86,191.72,191.69,2.75]
[1761273621112,4.02213613,191.73,191.69,2.75]
[1761273621405,2.86,191.73,191.69,2.75]
[1761273621605,6.85162752,191.73,191.69,2.75]
[1761273621807,2.86,191.73,191.69,2.75]
[1761273622910,2.86,191.73,191.65,2.75]
[1761273623111,2.86,191.73,191.68,4.28109309]
[1761273623318,2.86,191.73,191.69,2.75]
[1761273626512,6.85608637,191.72,191.69,2.75]
[1761273626713,2.86,191.72,191.69,2.75]
[1761273629217,2.63,191.76,191.69,2.75]
[1761273629414,6.63142538,191.75,191.7,2.66]
[1761273629613,6.63142538,191.74,191.7,2.66]
[1761273629808,4.00142538,191.73,191.7,2.66]
[1761273630008,4.00142538,191.72,191.7,2.66]
[1761273630208,2.63,191.74,191.7,2.66]
[1761273630408,6.63147112,191.73,191.7,2.66]
[1761273630607,4.00147112,191.72,191.7,2.66]
[1761273630810,2.63,191.73,191.7,2.66]
[1761273631017,4.00125221,191.72,191.7,2.66]
[1761273631310,2.63,191.75,191.7,2.66]
[1761273631517,6.63127455,191.74,191.7,2.66]
[1761273631716,4.00127455,191.73,191.7,2.66]
[1761273632014,4.00127455,191.72,191.7,2.66]
[1761273632215,2.63,191.74,191.7,2.66]
[1761273632414,4.00129691,191.73,191.7,2.66]
[1761273632612,4.00129691,191.72,191.7,2.66]
[1761273632816,2.63,191.74,191.7,2.66]
[1761273633020,4.00129852,191.73,191.7,2.66]
[1761273633315,4.00129852,191.72,191.7,2.66]
[1761273633513,2.63,191.74,191.7,2.66]
[1761273633718,4.00156387,191.73,191.7,2.66]
[1761273634014,4.00156387,191.72,191.7,2.66]
[1761273634216,2.63,191.74,191.7,2.66]
[1761273634416,4.00157171,191.73,191.7,2.66]
[1761273634715,4.00157171,191.72,191.7,2.66]
[1761273635018,2.63,191.74,191.7,2.66]
[1761273635216,4.00174115,191.73,191.7,2.66]
[1761273635417,2.63,191.74,191.7,2.66]
[1761273635618,4.00179035,191.73,191.7,2.66]
[1761273635824,2.63,191.74,191.7,2.66]
[1761273636016,4.00179196,191.73,191.72,2.66]
[1761273636613,7.39342157,191.78,191.72,2.66]
[1761273636910,6.63224567,191.77,191.74,2.66]
[1761273637106,4.00224567,191.76,191.74,2.66]
[1761273637310,4.00224567,191.75,191.74,2.66]
[1761273638426,4.00224567,191.75,191.73,1.53109309]
[1761273638628,2.63,191.77,191.73,1.53109309]
[1761273638829,2.63,191.75,191.73,1.53109309]
[1761273639230,2.63,191.75,191.69,1.53109309]
[1761273639426,2.63,191.73,191.7,2.66]
[1761273640527,2.63,191.76,191.7,2.66]
[1761273640735,2.63,191.74,191.7,2.66]
[1761273640924,4.0756378,191.73,191.7,2.66]
[1761273641125,2.63,191.73,191.7,2.66]
[1761273641630,2.63,191.71,191.67,4.19109309]
[1761273641832,4.07500759,191.7,191.67,4.19109309]
[1761273642021,2.63,191.71,191.65,4.19109309]
[1761273642223,4.07495411,191.7,191.66,2.66]
[1761273642419,2.63,191.73,191.66,2.66]
[1761273642618,7.39342157,191.78,191.71,1.53109309]
[1761273642829,6.70618267,191.77,191.71,2.66]
[1761273643029,2.63,191.75,191.67,2.66]
[1761273643331,6.70618267,191.74,191.67,2.66]
[1761273643532,4.07618267,191.73,191.67,2.66]
[1761273643735,2.63,191.74,191.67,2.66]
[1761273643934,4.07610393,191.73,191.67,2.66]
[1761273644236,2.63,191.77,191.67,2.66]
[1761273644435,4.07618102,191.76,191.67,2.66]
[1761273644634,2.63,191.77,191.67,2.66]
[1761273644635,4.07618102,191.75,191.67,2.66]
[1761273644934,4.07618102,191.74,191.67,2.66]
[1761273645135,4.07618102,191.73,191.67,2.66]
[1761273645340,2.63,191.77,191.67,2.66]
[1761273645537,4.07610296,191.76,191.7,2.66]
[1761273645728,4.07610296,191.75,191.7,2.66]
[1761273645929,2.63,191.77,191.7,2.66]
[1761273645930,4.07610296,191.74,191.7,2.66]
[1761273646136,4.07610296,191.73,191.7,2.66]
[1761273646325,2.63,191.77,191.7,2.66]
[1761273646531,4.07625987,191.76,191.7,2.66]
[1761273646731,4.07625987,191.75,191.7,2.66]
[1761273646931,4.07625987,191.74,191.7,2.66]
[1761273647238,2.63,191.77,191.7,2.66]
[1761273647439,4.07642197,191.76,191.7,2.66]
[1761273647637,4.07642197,191.75,191.7,2.66]
[1761273647839,4.07642197,191.74,191.7,2.66]
[1761273648032,2.63,191.77,191.7,2.66]